Cogmind - Beta 14 @@@ ROGUE MODE // 2025.01.03 @ 12:37:12 // Winter2021/Sauler Player: Demo Result: Destroyed by G-67 Veteran with Field Laser Performance ------------- Evolutions (7) 3500 Regions Visited (17) 3400 Robots Destroyed (115) 575 Value Destroyed (3925) 3925 Prototype IDs (31) 620 Alien Tech Used (0) 0 Bonus (4395) 4395 TOTAL SCORE: 16415 Bonus ------- High Alert Combat Kills 121 Follower Combat Kills 1274 Delivered SUBCON Basin 2000 Registered with UFD 300 Met Imprinter 300 Built Enhanced Grunts 300 A7 Reached Mainframe 300 Friendly Fire -200 Cogmind --------- Core Integrity 0/1300 Matter 284/350 Energy 50/150 System Corruption 28% Temperature Cool (0) Movement Core (200) Ox3 Location -3/Research Parts ------- > --- POWER (2) -------- Micro Antimatter Reactor > --- PROPULSION (4) --- (None) > --- UTILITY (12) ----- Advanced Cryofiber Web Experimental Cooling System Small Matter Pod Experimental Melee Analysis Suite Improved Hacking Suite > --- WEAPON (3) ------- (None) > --- INVENTORY (5) ---- Advanced Energy Well (373) Experimental Field Recycling Unit (0) Peak State ------------ > --- POWER ------------ Micro Antimatter Reactor > --- PROPULSION ------- Antigrav System Improved Antigrav System Antigrav Array > --- UTILITY ---------- Advanced Cryofiber Web Advanced Heat Sink Large Storage Unit Small Battery Advanced Energy Well Enhanced Optical Array Experimental Signal Interpreter Advanced Melee Analysis Suite Experimental Melee Analysis Suite Advanced Target Analyzer Improved Hacking Suite Advanced System Shield > --- WEAPON ----------- Gamma Rifle Gamma Rifle Advanced KE Penetrator > --- INVENTORY -------- Flexi-carbon Leg Flexi-carbon Leg Flexi-carbon Leg Flexi-carbon Leg Biometal Leg Improved Antigrav System Experimental Cooling System Improved Remote Force Field Experimental Field Recycling Unit Hacking Drone Bay Advanced Variable Charge Gun Quantum Rifle Gamma Bomb Array Advanced Datajack Advanced Remote Datajack [Rating: 137] Favorites ----------- Power Subdweller Power Source Engine Subdweller Power Source Power Core Light Nuclear Core Reactor Particle Reactor Propulsion Wheel Treads Light Treads Leg Flexi-carbon Leg Wheel Wheel Hover Unit Antigrav Array Flight Unit Nuclear Pulse Thruster Utility Tech Extrapolator Device Advanced Heat Sink Storage Humpback Processor Tech Extrapolator Hackware Advanced System Shield Protection Improved Medium Armor Plating Weapon Grenade Launcher Energy Gun Gatling Laser Energy Cannon Neutron Cannon Ballistic Gun Battle Rifle Ballistic Cannon Antimatter Cannon Launcher Grenade Launcher Special Weapon Improved Remote Datajack Impact Weapon Shock Maul Slashing Weapon Chainsword Piercing Weapon Makeshift Spear Special Melee Weapon Advanced Datajack Build | -11 -10 -10 -10 -9 -9 -6 -6 -6 -6 -5 -5 -4 -4 -4 -4 -4 -3 ------- Run | Yrd Mat Min Sub Rec Scr Fac Low Low Zio Pro Fac Fac Ext Cet Arc Hub Res Slots Evolved 14 | . . . . . . 8 . . . . 2 2 . . . . 2 Power 1 | . . . . . . . . . . . . . . . . . 1 Propulsion 2 | . . . . . . 1 . . . . 1 . . . . . . Utility 10 | . . . . . . 7 . . . . 1 2 . . . . . Weapon 1 | . . . . . . . . . . . . . . . . . 1 Parts Attached 229 | 2 2 3 8 9 11 30 11 . 7 12 19 3 21 11 5 14 61 Power 16 | . . . 1 . . 1 2 . 1 1 1 . 1 1 1 . 6 Engine 4 | . . . 1 . . . 2 . 1 . . . . . . . . Core 5 | . . . . . . 1 . . . 1 1 . 1 1 . . . Reactor 7 | . . . . . . . . . . . . . . . 1 . 6 Propulsion 52 | 2 . . 2 3 3 6 1 . 1 3 5 1 6 1 1 3 14 Treads 4 | 2 . . . . . 1 . . . . . . . . . . 1 Leg 13 | . . . . . . . . . . 1 . . 4 1 1 3 3 Wheel 11 | . . . 2 3 3 3 . . . . . . . . . . . Hover 13 | . . . . . . . . . . . 2 . 1 . . . 10 Flight 11 | . . . . . . 2 1 . 1 2 3 1 1 . . . . Utility 103 | . . 2 4 . 3 16 5 . 2 4 8 2 11 6 1 6 33 Device 46 | . . . 1 . . 7 1 . 2 3 4 1 4 2 . 3 18 Storage 15 | . . 2 3 . 2 1 . . . . . . 1 . . . 6 Processor 17 | . . . . . 1 6 2 . . 1 2 . 2 . . . 3 Hackware 4 | . . . . . . 1 . . . . 2 . . . . . 1 Protection 21 | . . . . . . 1 2 . . . . 1 4 4 1 3 5 Artifact . | . . . . . . . . . . . . . . . . . . Weapon 58 | . 2 1 1 6 5 7 3 . 3 4 5 . 3 3 2 5 8 Energy Gun 12 | . . . . . 2 4 . . . . 1 . 1 1 . 1 2 Energy Cannon 1 | . . . . . . . . . . . . . . . . 1 . Ballistic Gun 14 | . 1 . . 5 . . 1 . . 1 . . . 1 1 2 2 Ballistic Cannon 1 | . . . . . . . . . . . 1 . . . . . . Launcher 8 | . 1 1 1 1 . 1 . . . . 1 . . . . . 2 Special Weapon 9 | . . . . . 3 . . . 2 2 1 . 1 . . . . Impact Weapon 6 | . . . . . . . . . . 1 1 . 1 1 1 . 1 Slashing Weapon 2 | . . . . . . 2 . . . . . . . . . . . Piercing Weapon 3 | . . . . . . . 2 . 1 . . . . . . . . Special Melee Weapon 2 | . . . . . . . . . . . . . . . . 1 1 Unidentified Prototypes 16 | . . . . . . . . . 1 1 4 . 1 1 2 1 5 Corrupted Parts 2 | . . . . . . 1 . . . . . . . . . . 1 System Corruption 5 | . . . . . . 3 . . . . . . . . . . 2 Parts Lost 87 | . . . . 3 . 15 2 1 5 5 . . 15 2 . 6 33 Power 7 | . . . . 1 . 1 . 1 . . . . 1 . . 1 2 Propulsion 28 | . . . . . . 5 . . 2 1 . . 5 1 . 2 12 Utility 40 | . . . . . . 7 2 . 2 3 . . 7 1 . 3 15 Weapon 12 | . . . . 2 . 2 . . 1 1 . . 2 . . . 4 Highest Loss Streak 16 | . . . . 2 . 10 1 1 4 2 . . 10 2 . 4 16 To Critical Strikes . | . . . . . . . . . . . . . . . . . . Average Slot Usage (%) 78 | . 45 55 84 75 74 76 76 89 87 72 82 89 79 99 100 100 73 Engine 1 | . . . 9 4 . 1 1 2 3 . . . . . . . . Leg 1 | . . . . . . . . . . . . . 6 20 21 21 1 Wheel 17 | . . . 26 28 28 8 . . . . . . . . . . . Flight 2 | . . . . . . 2 8 13 12 13 18 18 6 . . . . Device 3 | . . . . . . 20 8 6 5 11 11 15 8 5 5 7 13 Storage 10 | . . 14 17 14 13 4 . . . . . . 1 5 5 5 7 Processor 13 | . . . . . 6 21 42 46 45 38 32 26 26 31 31 31 20 Hackware 1 | . . . . . . . . . . . 5 10 10 5 5 5 5 Protection 1 | . . . . . . 1 4 6 6 . . 3 5 14 15 12 1 Energy Gun 5 | . . . . . 11 6 . . . . . . 1 5 5 5 3 Ballistic Gun 7 | . 11 7 . 17 13 . . . . . . . . . . 1 1 Launcher 4 | . 5 5 27 10 . . . . . . . . . . . . . Peak Build Rating 137 | 2 4 9 30 30 23 64 63 63 70 63 94 109 109 109 113 119 137 Average Rating 43 | 1 3 5 26 26 17 53 56 62 63 54 76 104 91 103 106 111 116 On Entrance 55 | . 2 3 9 30 17 23 52 63 62 57 57 94 109 106 104 113 104 Naked Turns . | . . . . . . . . . . . . . . . . . . Heaviest Build 211 | . 5 5 211 211 205 48 9 9 15 15 17 22 57 66 69 69 64 Greatest Support 85 | 3 3 3 20 26 22 28 11 11 19 12 23 28 85 85 85 85 80 Greatest Overweight (x) 10 | . 1 1 10 10 10 2 1 . 1 1 1 1 1 1 . . 2 Average Overweight (x) 2 | . . . 5 9 4 . . . . . . . . . . . . Largest Inventory Capacity 35 | 5 5 5 35 35 35 15 5 5 5 5 5 5 15 15 15 15 15 Average Capacity 20 | 5 5 5 27 35 24 12 5 5 5 5 5 5 7 15 15 15 14 Most Carried 35 | 5 5 5 35 35 35 15 5 5 5 5 5 5 15 15 15 15 15 Average Carried 19 | 2 4 4 24 33 23 11 4 5 4 4 4 4 6 14 14 14 13 Final Capacity 35 | 5 5 5 35 35 15 5 5 5 5 5 5 5 15 15 15 15 5 Final Carried 35 | 5 5 5 35 35 15 5 5 5 5 5 5 5 15 15 15 15 2 Class Distribution -------------------- 39% | Hauler-Mutant 30% | Mutant 10% | Scavenger-Mutant 6% | Hacker-Mutant 3% | Sprinter 3% | Gladiator Dominant Class ---------------- Mutant | -10/Materials Mutant | -10/Mines Hauler-Mutant | -10/Subcaves Hauler-Mutant | -9/Recycling Mutant | -9/Scraptown Mutant | -6/Factory Gladiator | -6/Lower Caves Gladiator | -6/Lower Caves Derelict-Gladiator | -6/Zion Sprinter | -5/Proximity Caves Sprinter | -5/Factory Hacker-Mutant | -4/Factory Hacker-Mutant | -4/Extension Scavenger-Mutant | -4/Cetus Scavenger-Mutant | -4/Archives Scavenger-Mutant | -4/Hub_04(d) Scavenger-Mutant | -3/Research Resources | -11 -10 -10 -10 -9 -9 -6 -6 -6 -6 -5 -5 -4 -4 -4 -4 -4 -3 ----------- Run | Yrd Mat Min Sub Rec Scr Fac Low Low Zio Pro Fac Fac Ext Cet Arc Hub Res Matter Collected 3597 | 220 52 70 351 690 133 129 386 . 48 124 130 121 220 72 122 195 534 Remotely 35 | . . . . . . . . . . 35 . . . . . . . Salvage Created 5306 | . 70 32 208 841 . 273 293 111 17 222 266 180 821 . 633 610 729 Parts 212 | . 11 8 27 37 . 13 7 3 1 17 13 . 12 . 9 23 31 Haulers Intercepted 5 | . 1 . . . . . . . . . 1 . 2 . . 1 . Recyclers Shooed 10 | . . 1 . 7 . 2 . . . . . . . . . . . Parts Field Recycled . | . . . . . . . . . . . . . . . . . . Retrieved Matter . | . . . . . . . . . . . . . . . . . . Parts Self-Destructed 23 | . . . 3 . . . 6 5 . 9 . . . . . . . Prevented 3 | . . . . . . . . 3 . . . . . . . . . Kills | -11 -10 -10 -10 -9 -9 -6 -6 -6 -6 -5 -5 -4 -4 -4 -4 -4 -3 ------- Run | Yrd Mat Min Sub Rec Scr Fac Low Low Zio Pro Fac Fac Ext Cet Arc Hub Res Combat Hostiles Destroyed 64 | . 3 . 14 3 . 2 3 . . 8 2 3 6 . 3 5 12 Melee 14 | . . . . . . . 3 . . 2 2 2 3 . . . 2 Guns 19 | . 1 . . 3 . 1 . . . . . . . . 3 5 6 Cannons 2 | . . . . . . . . . . 2 . . . . . . . AOE 21 | . 2 . 14 . . 1 . . . 4 . . . . . . . Classes Destroyed 20 | . 2 2 3 2 . 1 2 1 1 1 2 . . . . 2 1 Builder 11 | . . 2 . 4 . 3 . . . . . . . . . . 2 Tunneler 1 | . . 1 . . . . . . . . . . . . . . . Hauler 5 | . 1 . . . . . . . . . 1 . 2 . . 1 . Recycler 12 | . . . . 7 . 2 . . . . . . 1 . . 1 1 Operator 12 | . . . . . . . . . . . 1 . 2 . 9 . . Turret 2 | . . . 2 . . . . . . . . . . . . . . Watcher 7 | . . . . . . . . . . . 1 3 2 . . . 1 Swarmer 25 | . 3 . 4 . . . . . . 7 . 3 . . . . 8 Grunt 10 | . . . . . . . 3 . . . . . 5 . . 1 1 Brawler 1 | . . . . . . . . . . . . . . . . 1 . Duelist 1 | . . . . . . . . . . . . . . . . . 1 Sentry 9 | . . . . 3 . 1 . . . . . . 1 . 3 1 . Specialist 1 | . . . . . . 1 . . . . . . . . . . . Hunter 3 | . . . . . . . . . . 1 2 . . . . . . Programmer 4 | . . . . . . . . . . . . . . . . 2 2 Enhanced Grunt 1 | . . . . . . . . . . . . . . . 1 . . Artisan 1 | . . . 1 . . . . . . . . . . . . . . Subdweller 10 | . . . 10 . . . . . . . . . . . . . . Decomposer 7 | . . . . . . . 2 3 . 2 . . . . . . . Packrat 1 | . . . . . . . 1 . . . . . . . . . . Samaritan 1 | . . . . . . . . 1 . . . . . . . . . Tinkerer 1 | . . . . . . . . . 1 . . . . . . . . Best Kill Streak 7 | . 3 3 5 3 . 5 3 . 1 4 2 3 3 . 7 5 5 Combat Bots Only 4 | . 3 . 4 1 . 2 3 . . 4 2 3 3 . 3 4 4 Max Kills in Single Turn 4 | . 2 2 2 1 . 2 1 1 1 4 1 1 1 . 2 1 1 Gunslinging . | . . . . . . . . . . . . . . . . . . Exploded 3 | . 1 . 2 . . 1 . . . 3 . . . . . . . Melee 1 | . . . . . . . 1 . . 1 1 1 1 . . . 1 Uniques/NPCs Destroyed . | . . . . . . . . . . . . . . . . . . Combat | -11 -10 -10 -10 -9 -9 -6 -6 -6 -6 -5 -5 -4 -4 -4 -4 -4 -3 -------- Run | Yrd Mat Min Sub Rec Scr Fac Low Low Zio Pro Fac Fac Ext Cet Arc Hub Res Hostile Shots Fired 1141 | . 7 . 26 26 . 218 14 11 68 49 12 18 143 31 5 135 378 Missed 461 | . 2 . 11 3 . 90 5 8 34 18 5 9 60 17 1 48 150 Damage Taken 13052 | . 52 32 324 332 . 1835 173 29 511 475 114 144 1735 465 99 1840 4892 Core 2937 | . . . 55 43 . 350 76 . 302 116 36 72 369 24 . 186 1308 Absorbed by Shields 289 | . . . . . . 226 . . . . . . 63 . . . . Redirected to Shielding 118 | . . . . . . . 18 2 24 22 . . 52 . . . . Regen/Repaired (Parts) 8 | . . . . . . . . . 8 . . . . . . . . Core Remaining (%) 59 | 100 . . . . 60 . . . . . 96 . . . . 43 . Volleys Fired 191 | . 4 3 32 45 . 25 . . . 4 . 3 4 3 9 17 42 Largest 2 | . 2 1 2 2 . 2 . . . 1 . 1 1 2 2 2 2 Hottest 275 | . 50 30 60 60 . 150 . . . . . 7 5 114 240 275 110 Shots Fired 309 | . 6 3 64 87 . 35 . . . 4 . 3 4 6 12 33 52 Gun 215 | . 4 . . 85 . 24 . . . . . . . 6 12 33 51 Cannon . | . . . . . . . . . . . . . . . . . . Launcher 83 | . 2 3 64 2 . 11 . . . . . . . . . . 1 Special 11 | . . . . . . . . . . 4 . 3 4 . . . . Kinetic 141 | . 4 . . 85 . . . . . . . . . 3 8 16 25 Thermal 64 | . . . . . . 24 . . . . . . . 3 4 17 16 Explosive 86 | . 2 3 64 2 . 11 . . . 4 . . . . . . . Electromagnetic 11 | . . . . . . . . . . . . . . . . . 11 Robot Hit Streak 14 | . 4 5 9 14 . 8 . . . 3 . 4 6 4 11 8 7 Robot Miss Streak 5 | . 2 . 1 2 . 2 . . . . . . 1 1 1 2 5 Penetration Max 1 | . . . . . . . . . . . . . . 1 . 1 1 Secondary Targets 4 | . . . . . . . . . . . . . . . . 4 . Max Gunslinging Chain 1 | . . . . . . . . . . . . . . . . 1 . Shots Hit Robots 273 | . 4 1 16 59 . 27 7 4 2 8 10 7 29 6 19 28 46 Core Hits 163 | . 7 4 37 23 . 18 7 2 1 10 2 1 3 1 7 11 29 Critical Kills 7 | . . . . . . . . . . . 1 1 3 . . 1 1 Critical Parts Destroyed 18 | . . . . . . . . . . . 2 1 3 1 2 1 8 Critical Strikes 33 | . . . . . . 2 2 1 1 . 3 2 7 1 2 2 10 Burn 2 | . . . . . . 2 . . . . . . . . . . . Destroy 4 | . . . . . . . . . . . . . . . . 1 3 Corrupt 1 | . . . . . . . . . . . . . . . . . 1 Smash 22 | . . . . . . . . . . . 3 2 7 1 2 1 6 Impale 4 | . . . . . . . 2 1 1 . . . . . . . . Melee Attacks 165 | . . . . . . 6 9 6 3 9 21 22 41 2 11 11 24 Impact 129 | . . . . . . . . . . . 21 22 41 2 11 10 22 Slashing 6 | . . . . . . 6 . . . . . . . . . . . Piercing 27 | . . . . . . . 9 6 3 9 . . . . . . . Sneak Attacks 29 | . . . . . . 2 3 4 1 2 2 . 4 . 8 1 2 Combat Hostiles . | . . . . . . . . . . . . . . . . . . Follow-up Attacks 1 | . . . . . . . 1 . . . . . . . . . . Damage Inflicted 14337 | . 160 124 1788 1079 . 1411 407 308 110 821 756 489 1910 191 1305 1338 2140 Guns 3855 | . 51 . . 1019 . 393 . . . . . . . 138 304 1081 869 Cannons . | . . . . . . . . . . . . . . . . . . Explosions 3568 | . 109 124 1788 60 . 812 . . . 463 . . . . . . 212 Melee 6781 | . . . . . . 206 407 308 110 284 756 489 1910 53 1001 239 1018 Ramming 59 | . . . . . . . . . . . . . . . . 18 41 Kinetic 2205 | . 51 . . 1019 . . . . . . . . . 67 192 360 516 Thermal 1531 | . . . . . . 393 . . . . . . . 71 112 721 234 Explosive 3356 | . 109 124 1788 60 . 812 . . . 463 . . . . . . . Electromagnetic 331 | . . . . . . . . . . . . . . . . . 331 Impact 5466 | . . . . . . . . . . . 756 489 1910 53 1001 239 1018 Slashing 280 | . . . . . . 206 . . . 74 . . . . . . . Piercing 1109 | . . . . . . . 407 308 110 284 . . . . . . . Highest Corruption 28 | . . . . . . 3 2 2 2 1 3 . . . . 3 28 Average Corruption 3 | . . . . . . 2 2 2 1 1 3 . . . . 2 7 Corruption Purged 1 | . . . . . . 1 . . . . . . . . . . . Corruption Blocked . | . . . . . . . . . . . . . . . . . . Effects 34 | . . . . . . . 2 3 3 3 2 . . . . 1 20 Message Errors 9 | . . . . . . . 1 . 1 2 2 . . . . . 3 Matter Fused 6 | . . . . . . . . . 1 1 . . . . . . 4 Heat Flow Errors 4 | . . . . . . . 1 . . . . . . . . 1 2 Energy Discharges 4 | . . . . . . . . 1 1 . . . . . . . 2 Parts Rejected 1 | . . . . . . . . . . . . . . . . . 1 Parts Fused 1 | . . . . . . . . . . . . . . . . . 1 Data Loss (major) 1 | . . . . . . . . . . . . . . . . . 1 Misfires 2 | . . . . . . . . . . . . . . . . . 2 Alerts 2 | . . . . . . . . 2 . . . . . . . . . Misdirections 3 | . . . . . . . . . . . . . . . . . 3 Weapon Failures 1 | . . . . . . . . . . . . . . . . . 1 Overload Shots 13 | . . . . . . . . . . . . . . . 1 12 . Effects 2 | . . . . . . . . . . . . . . . . 2 . Energy Bleed 1 | . . . . . . . . . . . . . . . . 1 . Heat Surge 1 | . . . . . . . . . . . . . . . . 1 . Overflow Damage 3252 | . 3 . . . . 126 . 188 126 59 262 320 567 53 779 147 622 Projectiles 12 | . . . . . . . . . . . . . . . 12 . . Explosions 70 | . 3 . . . . 62 . . . 5 . . . . . . . Melee 3170 | . . . . . . 64 . 188 126 54 262 320 567 53 767 147 622 Knockbacks 21 | . . . . . . . . . . . . 1 7 . 4 . 9 Impact 21 | . . . . . . . . . . . . 1 7 . 4 . 9 Kinetic . | . . . . . . . . . . . . . . . . . . Secondary . | . . . . . . . . . . . . . . . . . . Self-Inflicted Damage 212 | . 15 32 72 . . 76 . . . . . . . . . . 17 Shots 9 | . 1 2 4 . . 2 . . . . . . . . . . . Rammed 11 | . . . . . . . . . . . . . . . . . 11 Targets Rammed 13 | . . . . . . . . . . . . . . . . 2 11 Kicked 2 | . . . . . . . . . . . . . . . . 2 . Crushed . | . . . . . . . . . . . . . . . . . . Highest Temperature 423 | . 7 . . 31 . 228 125 . 2 . . . 353 45 159 423 229 Average Temperature 67 | . 7 . . 4 . 90 72 . 2 . . . 180 28 91 127 51 Received Heat Transfer 1709 | . . . 15 126 . 92 81 9 89 9 . 9 573 54 9 390 253 Siege Activations . | . . . . . . . . . . . . . . . . . . Robots Corrupted 24 | . . . . . . . . . . . 1 3 7 . 8 . 5 Combat Hostiles 8 | . . . . . . . . . . . . 1 3 . . . 4 Parts Fried 49 | . . . . . . . . . . . 4 8 11 . 16 1 9 Impact Corruptions 85 | . . . . . . . . . . . 6 11 19 2 25 2 20 Robots Melted . | . . . . . . . . . . . . . . . . . . Combat Hostiles . | . . . . . . . . . . . . . . . . . . Parts Melted 3 | . . . . . . . . . . . . . . . . 2 1 Heat Transferred 2291 | . . . . . . 1075 . . . . . . . 111 124 611 370 Parts Sabotaged . | . . . . . . . . . . . . . . . . . . Parts Stolen . | . . . . . . . . . . . . . . . . . . Parts Stripped . | . . . . . . . . . . . . . . . . . . Power Chain Reactions . | . . . . . . . . . . . . . . . . . . Alert | -11 -10 -10 -10 -9 -9 -6 -6 -6 -6 -5 -5 -4 -4 -4 -4 -4 -3 ------- Run | Yrd Mat Min Sub Rec Scr Fac Low Low Zio Pro Fac Fac Ext Cet Arc Hub Res Peak Influence 674 | . 140 78 . 57 . 111 . . . . 247 269 371 305 419 674 463 Initial 342 | . . 54 . 6 . . . . . . . 9 131 154 122 146 342 Average 149 | . 73 62 . 10 . 21 . . . . 103 156 224 279 341 364 312 Maximum Alert Level 2 | . . . . . . . . . . . 1 1 1 1 2 2 2 Low Security (%) 63 | 100 100 100 . 100 . 100 . . . . 88 59 32 9 7 37 22 Level 1 29 | . . . . . . . . . . . 11 40 67 90 66 22 49 Level 2 7 | . . . . . . . . . . . . . . . 25 40 27 Level 3 . | . . . . . . . . . . . . . . . . . . Level 4 . | . . . . . . . . . . . . . . . . . . Level 5 . | . . . . . . . . . . . . . . . . . . High Security . | . . . . . . . . . . . . . . . . . . Max Security . | . . . . . . . . . . . . . . . . . . Squads Dispatched 26 | . 1 . . . . 3 . . . . 1 1 3 . . 7 10 Investigation 6 | . . . . . . . . . . . 1 1 1 . . . 3 Extermination 4 | . . . . . . 1 . . . . . . . . . 1 2 Reinforcement 14 | . 1 . . . . 2 . . . . . . 2 . . 4 5 Assault . | . . . . . . . . . . . . . . . . . . Garrison 2 | . . . . . . . . . . . . . . . . 2 . Intercept . | . . . . . . . . . . . . . . . . . . Searches Triggered . | . . . . . . . . . . . . . . . . . . Construction Impeded 2 | . . . . . . 1 . . . . . . . . . . 1 Haulers Reinforced 3 | . . . . . . . . . . . . . . . . 1 2 Active Scanning Responses . | . . . . . . . . . . . . . . . . . . Cargo Convoy Interrupts . | . . . . . . . . . . . . . . . . . . Stealth | -11 -10 -10 -10 -9 -9 -6 -6 -6 -6 -5 -5 -4 -4 -4 -4 -4 -3 --------- Run | Yrd Mat Min Sub Rec Scr Fac Low Low Zio Pro Fac Fac Ext Cet Arc Hub Res Distress Signals 13 | . . . . . . 1 . . . . . . 2 1 . 4 5 Communications Jammed . | . . . . . . . . . . . . . . . . . . Distress Signals . | . . . . . . . . . . . . . . . . . . Times Spotted 225 | . 6 . 16 3 . 14 8 8 28 9 8 12 24 5 5 27 52 Peak Tracking Total 17 | . 4 . 3 1 . 6 9 7 17 3 3 7 7 5 1 14 13 Tactical Retreats 34 | . . . 3 . . 2 5 1 5 2 1 3 4 . . 1 7 Traps | -11 -10 -10 -10 -9 -9 -6 -6 -6 -6 -5 -5 -4 -4 -4 -4 -4 -3 ------- Run | Yrd Mat Min Sub Rec Scr Fac Low Low Zio Pro Fac Fac Ext Cet Arc Hub Res Traps Triggered 4 | . . . . . . . . . . . . 1 2 . . . 1 Indirectly . | . . . . . . . . . . . . . . . . . . Trap Hack Attempts . | . . . . . . . . . . . . . . . . . . Triggered . | . . . . . . . . . . . . . . . . . . Disarmed . | . . . . . . . . . . . . . . . . . . Reprogrammed . | . . . . . . . . . . . . . . . . . . Reused . | . . . . . . . . . . . . . . . . . . Traps Extracted . | . . . . . . . . . . . . . . . . . . Installed . | . . . . . . . . . . . . . . . . . . Triggered 1 | . . . . . . . . . . . . . . . . . 1 Machines | -11 -10 -10 -10 -9 -9 -6 -6 -6 -6 -5 -5 -4 -4 -4 -4 -4 -3 ---------- Run | Yrd Mat Min Sub Rec Scr Fac Low Low Zio Pro Fac Fac Ext Cet Arc Hub Res Machines Disabled 11 | . 1 . 3 . . 1 . . . . . . 2 1 2 1 . Max in Single Turn 2 | . 1 . 2 . . 1 . . . . . . 1 1 1 . . Garrison Access 1 | . . . . . . . . . . . . . . . . . 1 Machines Repaired . | . . . . . . . . . . . . . . . . . . Machines Dismantled . | . . . . . . . . . . . . . . . . . . Machines Sabotaged . | . . . . . . . . . . . . . . . . . . Overloaded Fab Kills . | . . . . . . . . . . . . . . . . . . Hacking | -11 -10 -10 -10 -9 -9 -6 -6 -6 -6 -5 -5 -4 -4 -4 -4 -4 -3 --------- Run | Yrd Mat Min Sub Rec Scr Fac Low Low Zio Pro Fac Fac Ext Cet Arc Hub Res Machines Accessed 48 | . . . 3 9 9 4 1 . . . 6 1 9 1 1 1 3 Terminals 21 | . . . . 6 . 1 . . . . 3 . 9 1 . 1 . Fabricators 2 | . . . . . . 1 . . . . . . . . . . 1 Repair Stations 2 | . . . . . . 1 . . . . 1 . . . . . . Recycling Units 5 | . . . . 3 . . . . . . 1 1 . . . . . Scanalyzers . | . . . . . . . . . . . . . . . . . . Garrison Access 4 | . . . . . . 1 . . . . 1 . . . . . 2 Total Hacks 188 | . . . 7 29 50 9 1 . . . 18 2 22 7 25 7 11 Successful 131 | . . . 7 11 50 5 1 . . . 9 1 12 4 25 3 3 Failed 56 | . . . . 17 . 4 . . . . 9 1 10 3 . 4 8 Catastrophic 14 | . . . . 2 . 1 . . . . 4 . 3 1 . 1 2 Database Lockouts 1 | . . . . 1 . . . . . . . . . . . . . Manual 45 | . . . . 12 . 2 . . . . 13 2 8 1 . 3 4 Terminals 66 | . . . . 16 . 2 . . . . 10 . 22 7 . 7 2 Fabricators 6 | . . . . . . 2 . . . . . . . . . . 4 Repair Stations 8 | . . . . . . 3 . . . . 5 . . . . . . Recycling Units 17 | . . . . 13 . . . . . . 2 2 . . . . . Scanalyzers . | . . . . . . . . . . . . . . . . . . Garrison Access 8 | . . . . . . 2 . . . . 1 . . . . . 5 Terminal Hacks 105 | . . . 7 6 50 1 1 . . . . . 9 4 25 2 . Record 80 | . . . 5 . 43 . . . . . . . 2 4 25 1 . Part Schematic 3 | . . . . 3 . . . . . . . . . . . . . Robot Schematic 1 | . . . . 1 . . . . . . . . . . . . . Robot Analysis 7 | . . . . 1 6 . . . . . . . . . . . . Open Door 9 | . . . 1 . . . 1 . . . . . 7 . . . . Unreport Threat 1 | . . . . 1 . . . . . . . . . . . . . Locate Traps 2 | . . . . . . 1 . . . . . . . . . 1 . Derelict Proto ID Bank 1 | . . . . . 1 . . . . . . . . . . . . Release Object 1 | . . . 1 . . . . . . . . . . . . . . Fabricator Hacks 2 | . . . . . . 2 . . . . . . . . . . . Load Schematic 1 | . . . . . . 1 . . . . . . . . . . . Build 1 | . . . . . . 1 . . . . . . . . . . . Repair Station Hacks 3 | . . . . . . 1 . . . . 2 . . . . . . Scan Component 2 | . . . . . . . . . . . 2 . . . . . . Refit 1 | . . . . . . 1 . . . . . . . . . . . Recycling Unit Hacks 4 | . . . . 4 . . . . . . . . . . . . . Report Inventory 1 | . . . . 1 . . . . . . . . . . . . . Retrieve Components 3 | . . . . 3 . . . . . . . . . . . . . Scanalyzer . | . . . . . . . . . . . . . . . . . . Garrison Access Hacks 2 | . . . . . . . . . . . . . . . . . 2 Unlock Access 1 | . . . . . . . . . . . . . . . . . 1 Seal Access 1 | . . . . . . . . . . . . . . . . . 1 Unauthorized Hacks 14 | . . . . 1 . 1 . . . . 6 1 3 . . 1 1 Terminals 8 | . . . . . . . . . . . 4 . 3 . . 1 . Track 1 | . . . . . . . . . . . 1 . . . . . . Assimilate 3 | . . . . . . . . . . . 3 . . . . . . Botnet 4 | . . . . . . . . . . . . . 3 . . 1 . Fabricators . | . . . . . . . . . . . . . . . . . . Repair Stations 2 | . . . . . . . . . . . 1 1 . . . . . Recycling Units 2 | . . . . 1 . . . . . . 1 . . . . . . Recyclers 2 | . . . . 1 . . . . . . 1 . . . . . . Fedlink 2 | . . . . . . . . . . . 1 1 . . . . . Scanalyzers . | . . . . . . . . . . . . . . . . . . Garrison Access 2 | . . . . . . 1 . . . . . . . . . . 1 Reprogram 2 | . . . . . . 1 . . . . . . . . . . 1 Data Cores Recovered 1 | . . . . . . . . . . . 1 . . . . . . Used . | . . . . . . . . . . . . . . . . . . Hacking Detections 24 | . . . . 8 . 3 . . . . 6 . 4 . . 1 2 Full Trace Events 7 | . . . . 6 . . . . . . . . . . . . 1 Feedback Events . | . . . . . . . . . . . . . . . . . . Feedback Blocked . | . . . . . . . . . . . . . . . . . . Robot Schematics Acquired 4 | . . . . 1 . . . . 3 . . . . . . . . Robots Built . | . . . . . . . . . . . . . . . . . . Authchips . | . . . . . . . . . . . . . . . . . . Time . | . . . . . . . . . . . . . . . . . . Total Robot Build Rating . | . . . . . . . . . . . . . . . . . . Part Schematics Acquired 62 | . . . . 3 14 6 2 2 23 3 2 1 5 . . 1 . Parts Built 2 | . . . . . . 2 . . . . . . . . . . . Authchips 1 | . . . . . . 1 . . . . . . . . . . . Time 47 | . . . . . . 47 . . . . . . . . . . . Total Part Build Rating 10 | . . . . . . 10 . . . . . . . . . . . Parts Repaired . | . . . . . . . . . . . . . . . . . . Time . | . . . . . . . . . . . . . . . . . . Parts Recycled . | . . . . . . . . . . . . . . . . . . Recycled Matter . | . . . . . . . . . . . . . . . . . . Retrieved Matter . | . . . . . . . . . . . . . . . . . . Retrieved Components 11 | . . . . 11 . . . . . . . . . . . . . Parts Scanalyzed . | . . . . . . . . . . . . . . . . . . Part Schematics Acquired . | . . . . . . . . . . . . . . . . . . Parts Damaged . | . . . . . . . . . . . . . . . . . . Bothacking | -11 -10 -10 -10 -9 -9 -6 -6 -6 -6 -5 -5 -4 -4 -4 -4 -4 -3 ------------ Run | Yrd Mat Min Sub Rec Scr Fac Low Low Zio Pro Fac Fac Ext Cet Arc Hub Res Used RIF Installer . | . . . . . . . . . . . . . . . . . . Robots Hacked 4 | . . . . . . . . . . . . 1 1 . . 1 1 Non-combat 2 | . . . . . . . . . . . . 1 1 . . . . Combat . | . . . . . . . . . . . . . . . . . . Robot Hacks Applied 2 | . . . . . . . . . . . . 1 1 . . . . parse_system 1 | . . . . . . . . . . . . 1 . . . . . check_alert 1 | . . . . . . . . . . . . . 1 . . . . Manual 2 | . . . . . . . . . . . . . . . . 1 1 Relay Couplers Released . | . . . . . . . . . . . . . . . . . . Fabnet Peak Effective % . | . . . . . . . . . . . . . . . . . . Robots Rewired 4 | . . . . . . . . . . . . . 4 . . . . Allies Hacked . | . . . . . . . . . . . . . . . . . . Hacks Repelled . | . . . . . . . . . . . . . . . . . . Allies | -11 -10 -10 -10 -9 -9 -6 -6 -6 -6 -5 -5 -4 -4 -4 -4 -4 -3 -------- Run | Yrd Mat Min Sub Rec Scr Fac Low Low Zio Pro Fac Fac Ext Cet Arc Hub Res Total Allies 29 | . . . . . . . . . . . 3 . 16 5 . 1 4 Largest Group 9 | . . . . . . . . . . . 3 1 6 9 9 7 4 Highest-Rated Group 735 | . . . . . . . . . . . 78 26 351 735 735 491 188 Highest-Rated Ally 159 | . . . . . . . . . . . 26 26 159 152 146 96 47 Total Orders 26 | . . . . . . 2 . . . 1 9 5 3 2 . 1 3 EXPLORE 4 | . . . . . . 2 . . . 1 1 . . . . . . RETURN 22 | . . . . . . . . . . . 8 5 3 2 . 1 3 Ally Attacks 288 | . . . . . . . . . . . . . 96 41 35 89 27 Total Damage 8581 | . . . . . . . . . . . . . 2628 863 1136 3281 673 Kills 32 | . . . . . . . . . . . . . 12 6 1 11 2 Allies Corrupted 1 | . . . . . . . . . . . . . . . 1 . . Allies Melted 2 | . . . . . . . . . . . . . . . . . 2 Intel | -11 -10 -10 -10 -9 -9 -6 -6 -6 -6 -5 -5 -4 -4 -4 -4 -4 -3 ------- Run | Yrd Mat Min Sub Rec Scr Fac Low Low Zio Pro Fac Fac Ext Cet Arc Hub Res Robot Analysis Total 7 | . . . . 1 6 . . . . . . . . . . . . Derelict Logs Recovered 11 | . . 1 1 . 4 . 1 1 2 1 . . . . . . . Drone Launches 31 | . . . . . . 5 . . . 1 11 5 3 2 . 1 3 Drone Recoveries 26 | . . . . . . 3 . . . 1 8 5 3 2 . 1 3 Decoded 0b10 Intel 1 | . . . . . . 1 . . . . . . . . . . . Traps 1 | . . . . . . 1 . . . . . . . . . . . Exploration | -11 -10 -10 -10 -9 -9 -6 -6 -6 -6 -5 -5 -4 -4 -4 -4 -4 -3 ------------- Run | Yrd Mat Min Sub Rec Scr Fac Low Low Zio Pro Fac Fac Ext Cet Arc Hub Res Turns Passed 16968 | 29 52 100 1780 2330 6587 509 308 176 763 429 498 310 1073 393 364 335 932 Spaces Moved 13137 | 42 58 141 1024 904 3252 468 603 397 1232 739 856 547 1324 267 239 177 867 Core 663 | 42 58 141 67 . . 17 . . . . . . 237 . . . 101 Treads . | . . . . . . . . . . . . . . . . . . Legs 925 | . . . . . . . . . . . . . 201 267 239 177 41 Wheels 5326 | . . . 957 904 3252 213 . . . . . . . . . . . Hover 879 | . . . . . . . . . . . . . 154 . . . 725 Flight 5344 | . . . . . . 238 603 397 1232 739 856 547 732 . . . . Fastest Speed 28 | 50 50 50 80 195 80 37 34 34 34 32 28 31 35 120 120 120 40 Average Speed 97 | 50 58 62 159 228 150 70 36 34 56 36 30 32 51 121 120 120 61 Slowest Speed 230 | 50 100 100 230 230 230 120 120 34 114 155 112 119 120 190 120 120 180 Overloaded Moves . | . . . . . . . . . . . . . . . . . . Propulsion Burnouts . | . . . . . . . . . . . . . . . . . . Robots Hopped 8 | . . . . . . 3 . . 1 . 2 1 1 . . . . Cave-ins Triggered . | . . . . . . . . . . . . . . . . . . Exploration Rate (%) 55 | 4 21 28 58 97 93 16 70 75 88 86 19 13 96 86 94 26 22 Regions Visited 17 Branch Regions 12 Pre-discovered Areas 6 | . . . 3 . 3 . . . . . . . . . . . . Known Exits Taken 12 | . . . . . 1 1 1 1 1 1 1 1 1 1 1 1 . Unknown Exits Taken 5 | 1 1 1 1 1 . . . . . . . . . . . . . Scrap Searched 20 | . . . 2 . 5 . 3 3 3 4 . . . . . . . Spaces Dug 80 | . . . 26 13 . 2 . . . 1 10 7 10 . . 5 6 Terrain Destroyed 398 | . 3 24 205 16 . 47 . . . 54 10 7 10 . 1 12 9 Melee 41 | . . . . . . 2 . . . 1 10 7 10 . . 5 6 Projectile 16 | . . . . 3 . . . . . 2 . . . . 1 7 3 AOE 341 | . 3 24 205 13 . 45 . . . 51 . . . . . . . Terrain Rammed . | . . . . . . . . . . . . . . . . . . Walls Destroyed . | . . . . . . . . . . . . . . . . . . Machines Disabled . | . . . . . . . . . . . . . . . . . . Actions | -11 -10 -10 -10 -9 -9 -6 -6 -6 -6 -5 -5 -4 -4 -4 -4 -4 -3 --------- Run | Yrd Mat Min Sub Rec Scr Fac Low Low Zio Pro Fac Fac Ext Cet Arc Hub Res Total 16684 | 48 71 149 1111 1091 4971 593 679 432 1305 883 1052 632 1630 323 285 248 1181 Wait 2491 | . 2 1 8 91 1630 47 47 32 30 110 140 34 155 33 11 12 108 Move 13105 | 41 57 140 1023 903 3251 461 602 396 1229 738 851 544 1321 266 238 177 867 Hop 8 | . . . . . . 3 . . 1 . 2 1 1 . . . . Pick Up 188 | 5 3 1 25 28 33 8 3 . 16 1 3 3 20 4 5 8 22 Fast Attach 118 | 2 . 2 6 1 5 15 10 . 7 9 16 2 15 1 . 2 25 Attach 62 | . 2 1 . 2 1 11 1 . . 3 1 1 6 2 . 4 27 Detach 24 | . 1 . . . . 4 . . . 2 1 . 3 . . . 13 Swap 50 | . . . 2 6 5 4 . . . . 2 . . 8 5 8 10 Drop 197 | . 2 1 15 15 46 9 8 . 19 7 15 4 7 4 6 8 31 Fire 191 | . 4 3 32 45 . 25 . . . 4 . 3 4 3 9 17 42 Melee 162 | . . . . . . 6 8 4 3 9 21 22 41 2 11 11 24 Ram 10 | . . . . . . . . . . . . . . . . . 10 Kick 1 | . . . . . . . . . . . . . . . . 1 . Crush 2 | . . . . . . . . . . . . . . . . . 2 Escape Stasis 33 | . . . . . . . . . . . . 18 15 . . . . Rewire 42 | . . . . . . . . . . . . . 42 . . . . Trap . | . . . . . . . . . . . . . . . . . . Miscellaneous . | . . . . . . . . . . . . . . . . . . Route ------- -11/Scrapyard -10/Materials -10/Mines (discovered 3 exits: *Mat x2 / *Sub) -10/Subcaves (discovered 2 exits: [*Mat] / *Rec) -9/Recycling (discovered 2 exits: [*Fac] / *Scr) -9/Scraptown (discovered 2 exits: *Fac x2) -6/Factory (discovered 6 exits: *Fac x4 / *Low x2) -6/Lower Caves -6/Lower Caves (discovered 2 exits: Fac / *Zio) -6/Zion -5/Proximity Caves -5/Factory (discovered 6 exits: *Fac x4 / Upp x2) -4/Factory (discovered 8 exits: Res x4 / Upp x2 / *Ext x2) -4/Extension (discovered 3 exits: *Res x2 / *Cet) -4/Cetus -4/Archives (discovered 3 exits: *Res / *Hub x2) -4/Hub_04(d) (discovered 2 exits: *Res x2) -3/Research (discovered 2 exits: Tes / Gar) History --------- Turn | Location | Event 13 | -11/Scrapyard | Discovered new exit (range 15) 30 | -11/Scrapyard | Entered Materials 78 | -10/Materials | Discovered new exit (range 7) 82 | -10/Materials | Entered Mines 90 | -10/Mines | Identified exit to Materials 123 | -10/Mines | Discovered exit to Materials (range 15) 156 | -10/Mines | Discovered new exit (range 8) 182 | -10/Mines | Entered Subcaves 262 | -10/Subcaves | Found SUBCON Basin 307 | -10/Subcaves | Build established: Mutant 418 | -10/Subcaves | Ambushed by Subdwellers from Twisted Machinery 443 | -10/Subcaves | Discovered new exit (range 10) 458 | -10/Subcaves | Visited Clippyterm 461 | -10/Subcaves | Learned location of Extension (-4) 461 | -10/Subcaves | Learned Factory emergency access door positions 745 | -10/Subcaves | Discovered new exit (range 9) 907 | -10/Subcaves | Disturbed a concealed Subdweller 1088 | -10/Subcaves | Build established: Hauler-Mutant 1207 | -10/Subcaves | Learned location of Zion (-6) 1207 | -10/Subcaves | Met a Zionite searching for "candidates" 1962 | -10/Subcaves | Entered Recycling 2767 | -9/Recycling | Discovered new exit (range 16) 3727 | -9/Recycling | Scanned before Scraplab entrance 3761 | -9/Recycling | Entered Scraplab 3833 | -9/Recycling | Found SUBCON Basin 4274 | -9/Recycling | Discovered new exit (range 3) 4292 | -9/Recycling | Entered Scraptown 4455 | -9/Scraptown | Visited UFD Registry 4741 | -9/Scraptown | Visited Cyclists 4798 | -9/Scraptown | Registered with UFD as "Electronuts" 5058 | -9/Scraptown | Scanned Subdweller tech in exchange for log data 5063 | -9/Scraptown | Learned Factory garrison access intel 5065 | -9/Scraptown | Learned location of 1 exit from Research 5070 | -9/Scraptown | Learned Research security intel 5201 | -9/Scraptown | Entered Cyclist Reading Room 5240 | -9/Scraptown | Visited Shadow of the Wyrm 5417 | -9/Scraptown | Discovered new exit (range 11) 6321 | -9/Scraptown | Visited Chapter 10 6431 | -9/Scraptown | Visited Abandonware Association 6475 | -9/Scraptown | Learned abandonware demo "TRNCOAT.EXE" 6525 | -9/Scraptown | Visited Science Guys 6647 | -9/Scraptown | Delivered Scrap Shield to a Scientist 6882 | -9/Scraptown | Visited Observation Area 6974 | -9/Scraptown | Visited Infowarlord's Domain 7133 | -9/Scraptown | Visited Analyses Database 7174 | -9/Scraptown | Visited DA-N13 Charitable Foundation 7183 | -9/Scraptown | Found DCF Scrap (31 items) 7239 | -9/Scraptown | Visited A0-MCA Data Center 7252 | -9/Scraptown | Given a B- rating by A0-MCA 7255 | -9/Scraptown | Found A0-MCA's Component Scanner 7322 | -9/Scraptown | Visited Junk Cannon Lab 7395 | -9/Scraptown | Visited Cartography Club 7658 | -9/Scraptown | Visited Symbiants 7681 | -9/Scraptown | Visited TADAMA 7788 | -9/Scraptown | Build established: Mutant 7793 | -9/Scraptown | Visited CPS Storage 9064 | -9/Scraptown | Found Exp. Signal Interpreter 9155 | -9/Scraptown | Tech Extrapolator generated special schematic: Machine Rigger 10152 | -9/Scraptown | Found Surveybot 17 Chip 10181 | -9/Scraptown | Learned location of Testing (-3) 10181 | -9/Scraptown | Learned 20 Factory zone layouts 10181 | -9/Scraptown | Learned 4 Storage zone layouts 10181 | -9/Scraptown | Learned 16 Lower Caves zone layouts 10181 | -9/Scraptown | Learned 20 Lower Caves zone layouts 10181 | -9/Scraptown | Learned 16 Upper Caves zone layouts 10181 | -9/Scraptown | Learned location of 3 exits from Factory 10181 | -9/Scraptown | Learned location of 2 exits from Upper Caves 10181 | -9/Scraptown | Learned location of 2 exits from Proximity Caves 10181 | -9/Scraptown | Identified exit to Factory 10231 | -9/Scraptown | Found Deep Structural Scanner 10609 | -9/Scraptown | Found Scrap Suit 10879 | -9/Scraptown | Entered Factory 10879 | -6/Factory | Evolved 8 slots: Propulsion x1, Utility x7 10880 | -6/Factory | Identified exit to Factory 10881 | -6/Factory | Identified exit to Lower Caves 10884 | -6/Factory | Loaded intel: 4 garrison access locations 10923 | -6/Factory | Discovered exit to Factory (range 27) 11271 | -6/Factory | Lost 10 parts (1p3n5u1w) 11327 | -6/Factory | Fabricated 0b10 Decoder Chip [Scout]? 11388 | -6/Factory | Entered Lower Caves 11390 | -6/Lower Caves | UFD Scientist delivered a prototype 11395 | -6/Lower Caves | Found Prototype Protection 11544 | -6/Lower Caves | Core integrity fell below 50% 11636 | -6/Lower Caves | Encountered a Warlord checkpoint 11640 | -6/Lower Caves | Identified exit to Lower Caves 11686 | -6/Lower Caves | Attracted the attention of an 0b10 outpost 11696 | -6/Lower Caves | Entered another Lower Caves area 11697 | -6/Lower Caves | Encountered a Warlord checkpoint 11697 | -6/Lower Caves | Identified exit to Zion 11862 | -6/Lower Caves | Build established: Gladiator 11872 | -6/Lower Caves | Entered Zion 11893 | -6/Zion | Given A8's code to call for help 11898 | -6/Zion | Discovered new exit (range 14) 11904 | -6/Zion | Identified exit to Proximity Caves 11917 | -6/Zion | Found Prototype Special Weapon 11917 | -6/Zion | Identified RU-N14's Throwing Claymores 11945 | -6/Zion | Found RU-N14's Throwing Claymores 11946 | -6/Zion | Found RU-N14's Throwing Claymores 11968 | -6/Zion | Found RU-N14's Throwing Claymores 12016 | -6/Zion | Found Relay Coupler [Programmer] 12017 | -6/Zion | Found Relay Coupler [Programmer] 12019 | -6/Zion | Found Relay Coupler [Programmer] 12020 | -6/Zion | Found Relay Coupler [Programmer] 12022 | -6/Zion | Found Relay Coupler [Programmer] 12059 | -6/Zion | System corruption cleaned by Quarantine Array 12387 | -6/Zion | Build established: Derelict-Gladiator 12450 | -6/Zion | Learned Factory emergency access door positions 12454 | -6/Zion | Tech Extrapolator generated special schematic: Energy Deflector 12490 | -6/Zion | Given the Hacking Drone Bay 12491 | -6/Zion | Found Prototype Device 12508 | -6/Zion | Turned away by Imprinter 12519 | -6/Zion | Attempted to imprint without authorization 12519 | -6/Zion | Attacked by Zionites 12558 | -6/Zion | Lost 4 parts (2n1u1w) 12584 | -6/Zion | Spotted 8I-1F1(B) 12587 | -6/Zion | Spotted 84-3RC(B) 12599 | -6/Zion | Core integrity fell below 20% 12635 | -6/Zion | Entered Proximity Caves 12673 | -5/Proximity Caves | Attracted the attention of an 0b10 checkpoint 12879 | -5/Proximity Caves | Identified Hacking Drone Bay 12887 | -5/Proximity Caves | Spotted B-75 Beast 13064 | -5/Proximity Caves | Entered Factory 13064 | -5/Factory | Evolved 2 slots: Propulsion x1, Utility x1 13068 | -5/Factory | Build established: Sprinter 13283 | -5/Factory | Identified exit to Upper Caves 13285 | -5/Factory | Identified exit to Factory 13562 | -5/Factory | Entered another Factory area 13562 | -4/Factory | Accompanied by 1 ally 13562 | -4/Factory | Evolved 2 slots: Utility x2 13573 | -4/Factory | Identified exit to Research 13586 | -4/Factory | Identified exit to Upper Caves 13586 | -4/Factory | Identified exit to Extension 13621 | -4/Factory | Found Exp. Signal Interpreter 13872 | -4/Factory | Entered Extension 13883 | -4/Extension | Rescued a captive Derelict 13910 | -4/Extension | Rescued a captive Derelict 13929 | -4/Extension | Rescued a captive Derelict 13930 | -4/Extension | Rescued a captive Derelict 13979 | -4/Extension | Rescued a captive Derelict 14006 | -4/Extension | Rescued a captive Derelict 14024 | -4/Extension | Build established: Hacker-Mutant 14024 | -4/Extension | Lost 3 allies 14130 | -4/Extension | Enhanced Grunt warped into view, answering call for help 14133 | -4/Extension | Enhanced Grunt warped into view, answering call for help 14198 | -4/Extension | Disrupted transfer network 14224 | -4/Extension | Spotted B-86 Titan 14283 | -4/Extension | Spotted B-86 Titan 14303 | -4/Extension | Allies destroyed B-86 Titan 14306 | -4/Extension | Discovered exit to Research (range 3) 14317 | -4/Extension | Identified Enh. Scrap Shield 14368 | -4/Extension | Discovered new exit (range 21) 14369 | -4/Extension | Discovered exit to Research (range 20) 14374 | -4/Extension | Lost 10 parts (1p4n4u1w) 14378 | -4/Extension | Identified exit to Cetus 14393 | -4/Extension | Rescued a captive Derelict 14401 | -4/Extension | Rescued A7 14409 | -4/Extension | Rescued a captive Derelict 14447 | -4/Extension | Rescued a captive Derelict 14447 | -4/Extension | Rescued a captive Derelict 14615 | -4/Extension | Lost 3 parts (1n1u1w) 14945 | -4/Extension | Entered Cetus 14945 | -4/Cetus | Accompanied by 5 allies (A7) 14950 | -4/Cetus | Acquired a Cetus Manufacturing Module code from A7 14961 | -4/Cetus | Spotted Cetus Guard 14961 | -4/Cetus | Spotted Cetus Guard 14961 | -4/Cetus | Spotted Cetus Guard 14961 | -4/Cetus | Spotted Cetus Guard 14979 | -4/Cetus | Allies destroyed Cetus Guard 14981 | -4/Cetus | Allies destroyed Cetus Guard 14989 | -4/Cetus | Allies destroyed Cetus Guard 14991 | -4/Cetus | Allies destroyed Cetus Guard 15066 | -4/Cetus | Build established: Scavenger-Mutant 15094 | -4/Cetus | Started Cetus Manufacturing Module 15118 | -4/Cetus | Escorted A7 to Cetus Mainframe 15119 | -4/Cetus | Manufactured an Enhanced Grunt 15144 | -4/Cetus | Manufactured an Enhanced Grunt 15169 | -4/Cetus | Manufactured an Enhanced Grunt 15194 | -4/Cetus | Manufactured an Enhanced Grunt 15219 | -4/Cetus | Manufactured an Enhanced Grunt 15255 | -4/Cetus | Discovered new exit (range 21) 15279 | -4/Cetus | Identified exit to Archives 15338 | -4/Cetus | Entered Archives 15338 | -4/Archives | Accompanied by 9 allies (A7) 15344 | -4/Archives | Received a hacking code to weaken MAIN.C 15387 | -4/Archives | Unable to access archive contents 15390 | -4/Archives | Discovered new exit (range 15) 15393 | -4/Archives | Discovered new exit (range 22) 15400 | -4/Archives | Unable to access archive contents 15406 | -4/Archives | Discovered exit to Research (range 22) 15414 | -4/Archives | Unable to access archive contents 15427 | -4/Archives | Unable to access archive contents 15458 | -4/Archives | Identified exit to Hub_04(d) 15702 | -4/Archives | Entered Hub_04(d) 15702 | -4/Hub_04(d) | Accompanied by 7 allies 15893 | -4/Hub_04(d) | Discovered exit to Research (range 20) 15919 | -4/Hub_04(d) | Garrison activated, responded to threat 15937 | -4/Hub_04(d) | Lost 3 allies 15953 | -4/Hub_04(d) | Discovered exit to Research (range 8) 16011 | -4/Hub_04(d) | Lost 4 parts (1n3u) 16026 | -4/Hub_04(d) | Core integrity fell below 50% 16037 | -4/Hub_04(d) | Entered Research 16037 | -3/Research | Evolved 2 slots: Power x1, Weapon x1 16038 | -3/Research | Identified exit to Testing 16255 | -3/Research | Found Gamma Bomb Array 16339 | -3/Research | Identified exit to Garrison 16353 | -3/Research | Lost 4 parts (1p3u) 16468 | -3/Research | Found Prototype Processor 16468 | -3/Research | Identified Exp. Melee Analysis Suite 16605 | -3/Research | Lost 4 allies 16655 | -3/Research | Lost 4 parts (1p2u1w) 16679 | -3/Research | System corruption reached 10% 16712 | -3/Research | Lost 3 parts (1n1u1w) 16891 | -3/Research | Core integrity fell below 50% 16925 | -3/Research | Lost 16 parts (8n6u2w) 16936 | -3/Research | Core integrity fell below 20% 16969 | -3/Research | Destroyed by G-67 Veteran with Field Laser Last Messages --------------- 16941_ Biometal Medium Treads destroyed. 16941_ Slug penetrates Wall. 16947_ Acquired Linear Gravjet. 16952_ System corrupted: Heat flow error (+174). 16961_ Slammed into P-80 Master. 16961_ Exp. Signal Interpreter destroyed. 16961_ System corrupted by crushing effect (+3). 16963_ Slammed into H-77 Assassin. 16964_ Penetrated by Slug. 16964_ Slug penetrates P-80 Master. 16964_ Slug penetrates Wall. 16964_ Slammed into H-77 Assassin. 16964_ Linear Gravjet destroyed. 16964_ P-80 Master resets P-80 Master, system corruption cleaned. 16965_ Slammed into G-67 Veteran. 16965_ Slug penetrates Wall. 16966_ Slammed into G-67 Veteran. 16966_ Exp. Matter Compressor destroyed. [Achievement: I Think I Know What's Going On] Map ----- +----------------------------------------------------+ | ?????# ########## #??????# #????????? | | ?????# #????????# #??????# ! #????????? | | ###### #????????# ######## #????????? | | #????????# # !!!#????????? | | #????????# # !!!#????????? | | #????????# # !! #????????? | | #????????# # #????????? | | ########????????######## # ??????????? | | #??????????????????????# # ????????????? | | #??????????????????????# ###+####??????????? | | #??????????????????????# #??###?????? | | #??????????????????????# #??! #?????? | | #??????????????????????# #?! #?????? | | #??????????????????????# #?! #?????? | | ####??????????????????????########### # #?????? | | ???????????????????????????# # # #?????? | | ???????????????????????????# / + #??+### | | ??????????????????????????# # # #? | | ??????????????????????############# ###### | | " ?????????????????????# #???# | | " ?????????????######??# #???# | | #????????????#! #??# #???# | | #????????????# #??# #???# # | | ####????????????# #??# #???# # | | ???????????????# #######/######## # | | ???????????????# pphg@gpgg gh | | ???????????????# ################### | | ???????????????# #?????????????????? | | ????????????????# #?????????????????? | | ????????????????# #??????????????????######+## | | ????????????????######???????????????????????????? | | ?????????????????????????????????????????????????? | | ?????????????????????????????????????????????????? | | ?????????????????????????????????????????????????? | | ?????????????????????????????????????????????????? | | ?????????????????????????????????????????????????? | | ?????????????????????????????????????????????????? | | #????????????????????????????????????????????????? | | ???????????????????????????????????????????????? | | ???????????????????????????????????????????????? | | ???????????????????????????????????????????????? | | ???????????????????????????????????????????????? | | ?????????????????????????????????????????????????? | | ?????????????????????????????????????????????????? | | ?????????????????????????????????????????????????? | | ?????????????????????????????????????????????????? | | ?????????????????????????????????????????????????? | | ?????????????????????????????????????????????????? | | ?????????????????????????????????????????????????? | | ?????????????????????????????????????????????????? | +----------------------------------------------------+ Best States ------------- Heat Dissipation 115 Energy Generation 37 Energy Capacity 840 Matter Stores 600 Matter Capacity 850 Sight Range 22 Terrain Scan Range 24 Terrain Scan Density 1310 Base Temperature (-) 200 Armor Coverage 950 Resistance: TH 20 Core Shielding 30 Propulsion Shielding 33 Utility Shielding 33 Evasion (%) 73 Targeting Accuracy 8 Melee Accuracy 21 Target Analysis 8 Salvage Targeting 2 Offensive Hacking 12 Defensive Hacking 28 Authchip Count 11 Item Schematics ----------------- Huge Storage Unit | -9/Recycling | Hacked Ion Cannon | -9/Recycling | Hacked Kinecellerator | -9/Recycling | Hacked Mak. Coolant Network | -9/Scraptown | Extrapolated 0b10 Decoder Chip [Scout] | -9/Scraptown | Extrapolated Spk. Treads | -9/Scraptown | Extrapolated Mak. Trap Scanner | -9/Scraptown | Extrapolated Mak. Terrain Scanner | -9/Scraptown | Extrapolated 0b10 Decoder Chip [Generic] | -9/Scraptown | Extrapolated 0b10 Decoder Chip [Skirmisher] | -9/Scraptown | Extrapolated Tactical Coordination Suite | -9/Scraptown | Extrapolated Hvy. Battle Rifle | -9/Scraptown | Extrapolated Machine Rigger | -9/Scraptown | Extrapolated Mak. System Restoration Module | -9/Scraptown | Extrapolated Mak. Leg | -9/Scraptown | Extrapolated Structural Scanner | -9/Scraptown | Extrapolated Mak. Terrain Scan Processor | -9/Scraptown | Extrapolated Mak. Power Source | -6/Factory | Extrapolated Mak. Sensor Array | -6/Factory | Extrapolated 0b10 Decoder Chip [Looter] | -6/Factory | Extrapolated Mak. Light Armor Plating | -6/Factory | Extrapolated Hvy. Beamcaster | -6/Factory | Extrapolated Ripper | -6/Factory | Extrapolated Mak. Flight Unit | -6/Lower Caves | Extrapolated Beamcaster | -6/Lower Caves | Extrapolated Enh. Flamer | -6/Lower Caves | Extrapolated Mak. Laser | -6/Lower Caves | Extrapolated Spk. Medium Treads | -6/Zion | Extrapolated Mak. Core Shielding | -6/Zion | Extrapolated Mak. Hacking Suite | -6/Zion | Extrapolated Mak. Utility Shielding | -6/Zion | Extrapolated System Guard | -6/Zion | Archive Point Defense System | -6/Zion | Archive Centrium Wheel | -6/Zion | Archive Power Sword | -6/Zion | Archive Imp. Remote Datajack | -6/Zion | Archive Nuclear Pulse Thruster | -6/Zion | Archive Hyp. Gauss Cannon | -6/Zion | Archive Adv. Signal Interpreter | -6/Zion | Archive Adv. Coolant Injector | -6/Zion | Archive Plasma Rifle | -6/Zion | Archive Field Propulsion Drive | -6/Zion | Archive Variable Charge Gun | -6/Zion | Archive Coil Gun | -6/Zion | Archive Mass Driver | -6/Zion | Archive Mak. Medium Armor Plating | -6/Zion | Extrapolated Mak. Ablative Armor | -6/Zion | Extrapolated Energy Deflector | -6/Zion | Extrapolated Arc Thrower | -6/Zion | Extrapolated Mak. Thermal Plating | -6/Zion | Extrapolated Slug Cannon | -5/Proximity Caves | Extrapolated Plasma Flamer | -5/Proximity Caves | Extrapolated Mak. Targeting Computer | -5/Proximity Caves | Extrapolated Mak. Transmission Jammer | -5/Factory | Extrapolated Mak. System Shield | -5/Factory | Extrapolated Mapping Drone Bay | -4/Factory | Extrapolated Spk. Heavy Treads | -4/Extension | Extrapolated Mak. Heavy Armor Plating | -4/Extension | Extrapolated Mak. Salvage Targeting Computer | -4/Extension | Extrapolated Mak. Shrapnel Gun | -4/Extension | Extrapolated Bore Cannon | -4/Extension | Extrapolated Multitool | -4/Hub_04(d) | Extrapolated Robot Schematics ------------------ G-34 Mercenary | -9/Recycling | Hacked A-15 Conveyor | -6/Zion | Archive G-50 Soldier | -6/Zion | Archive R-06 Scavenger | -6/Zion | Archive Fabricated ------------ 0b10 Decoder Chip [Scout] | x2 | -6/Factory | Authchip Alien Tech Used ----------------- None Achievements -------------- I Think I Know What's Going On Quantum Hacking Challenges ------------ None Game ------ Seed AccelerationMyomerShotgun Manual? 0 Play Time 02:50:15 Cumulative 118.6 hours Start 2025.01.03 @ 09:32:25 End 2025.01.03 @ 12:37:12 Sessions 1 Manual Loads 0 Difficulty Rogue Special Mode Winter2021/Sauler Game No. 138 Rogue 138 Adventurer 0 Explorer 0 Win Type - Total 1 Types 1/0/0/0/0/0/0/0/0 Lore% 52 Gallery% 67 Achievement% 53 Wizard Run 0 Options --------- Layout 1 ASCII 0 Keyboard 0 Movement Numpad Keybinds 0 Fullscreen 1 Font 24/Smallcaps Map View 50x35 Zoom Use 0% Tactical HUD 1 Map Filters NONE Filters NONE Steam 1 RUN: 3cb15ddd-3e6c-4b96-9761-7e1ca7ca6036